[Event "*** SCC Grand Prix: Titled Tuesday Blitz"]
[Site "Chess.com"]
[Date "2020.08.25"]
[Round "8"]
[White "GustavoJuarezF"]
[Black "Larina_Marija"]
[Result "0-1"]
[WhiteElo "2055"]
[BlackElo "2081"]
[TimeControl "180+1"]
[EndTime "11:35:48 PDT"]
[Termination "Larina_Marija won on time"]

1. e4 {[%clk 0:02:07.1]} 1... d5 {[%clk 0:02:56.2]} 2. exd5 {[%clk 0:02:05.3]}
2... Qxd5 {[%clk 0:02:57.1]} 3. Nc3 {[%clk 0:02:04.9]} 3... Qa5 {[%clk
0:02:56.2]} 4. d4 {[%clk 0:02:04.9]} 4... Nf6 {[%clk 0:02:55.2]} 5. Bc4 {[%clk
0:02:04.4]} 5... Bf5 {[%clk 0:02:54.5]} 6. Bd2 {[%clk 0:02:03.6]} 6... Qb6
{[%clk 0:02:50.6]} 7. Bb3 {[%clk 0:01:55.8]} 7... Qxd4 {[%clk 0:02:45.2]} 8. Qe2
{[%clk 0:01:48.8]} 8... c6 {[%clk 0:02:39.4]} 9. Nf3 {[%clk 0:01:46.9]} 9... Qd8
{[%clk 0:02:34.8]} 10. Ne5 {[%clk 0:01:41.1]} 10... e6 {[%clk 0:02:32.8]} 11. g4
{[%clk 0:01:40.7]} 11... Bg6 {[%clk 0:02:26.9]} 12. h4 {[%clk 0:01:40.7]} 12...
Bb4 {[%clk 0:02:01.7]} 13. h5 {[%clk 0:01:39.9]} 13... Bxc3 {[%clk 0:02:00.5]}
14. hxg6 {[%clk 0:01:27.5]} 14... Bxd2+ {[%clk 0:01:57.7]} 15. Qxd2 {[%clk
0:01:26.6]} 15... Qxd2+ {[%clk 0:01:51.4]} 16. Kxd2 {[%clk 0:01:24.9]} 16...
fxg6 {[%clk 0:01:43.2]} 17. Nxg6 {[%clk 0:01:22.5]} 17... Rg8 {[%clk 0:01:34.3]}
18. Ne5 {[%clk 0:01:18.4]} 18... Ke7 {[%clk 0:01:32.2]} 19. Ke3 {[%clk
0:01:10.7]} 19... Na6 {[%clk 0:01:30]} 20. g5 {[%clk 0:01:08.3]} 20... Nd5+
{[%clk 0:01:29.5]} 21. Bxd5 {[%clk 0:01:07.8]} 21... cxd5 {[%clk 0:01:29.5]} 22.
Rxh7 {[%clk 0:01:07.2]} 22... Nc5 {[%clk 0:01:27]} 23. Rah1 {[%clk 0:00:50.7]}
23... Ne4 {[%clk 0:01:25.5]} 24. f4 {[%clk 0:00:46.5]} 24... Ng3 {[%clk
0:01:25]} 25. R1h3 {[%clk 0:00:31.7]} 25... Nf5+ {[%clk 0:01:24.9]} 26. Kd3
{[%clk 0:00:28.8]} 26... Rac8 {[%clk 0:01:25.1]} 27. c3 {[%clk 0:00:26.5]} 27...
b5 {[%clk 0:01:24]} 28. b4 {[%clk 0:00:19.9]} 28... a6 {[%clk 0:01:19.6]} 29. a3
{[%clk 0:00:19.6]} 29... Nd6 {[%clk 0:01:14.2]} 30. Ng6+ {[%clk 0:00:18.8]}
30... Kf7 {[%clk 0:01:13.1]} 31. Nh8+ {[%clk 0:00:17]} 31... Kf8 {[%clk
0:01:11.6]} 32. Ng6+ {[%clk 0:00:15.7]} 32... Ke8 {[%clk 0:01:10.2]} 33. Ne5
{[%clk 0:00:14.4]} 33... Nc4 {[%clk 0:01:08.6]} 34. Nxc4 {[%clk 0:00:05.3]}
34... dxc4+ {[%clk 0:01:08.4]} 35. Kd4 {[%clk 0:00:03.6]} 35... Ke7 {[%clk
0:01:08.6]} 36. Ke5 {[%clk 0:00:01.9]} 36... Rcd8 {[%clk 0:01:07.2]} 37. R3h6
{[%clk 0:00:02]} 37... Rd5+ {[%clk 0:01:07]} 38. Ke4 {[%clk 0:00:01.9]} 38...
Kd6 {[%clk 0:01:04.4]} 39. Rg6 {[%clk 0:00:01.1]} 39... Rd3 {[%clk 0:01:02]} 0-1

[Event "*** SCC Grand Prix: Titled Tuesday Blitz"]
[Site "Chess.com"]
[Date "2020.08.25"]
[Round "8"]
[White "HrvojeZagreb"]
[Black "Sn00pPawn"]
[Result "1-0"]
[WhiteElo "2169"]
[BlackElo "2005"]
[TimeControl "180+1"]
[EndTime "11:35:49 PDT"]
[Termination "HrvojeZagreb won on time"]

1. d4 {[%clk 0:03:00.9]} 1... d5 {[%clk 0:02:58.3]} 2. Bf4 {[%clk 0:03:00.7]}
2... e6 {[%clk 0:02:48]} 3. e3 {[%clk 0:03:00.7]} 3... c5 {[%clk 0:02:47.2]} 4.
Nc3 {[%clk 0:03:00.2]} 4... cxd4 {[%clk 0:02:39.2]} 5. exd4 {[%clk 0:02:58.8]}
5... a6 {[%clk 0:02:34]} 6. Bd3 {[%clk 0:02:54]} 6... Nc6 {[%clk 0:02:31.9]} 7.
Nce2 {[%clk 0:02:32.5]} 7... Qb6 {[%clk 0:02:23.2]} 8. Rb1 {[%clk 0:02:22]} 8...
Nxd4 {[%clk 0:02:20.9]} 9. Nxd4 {[%clk 0:02:22.1]} 9... Bc5 {[%clk 0:02:10.3]}
10. Ngf3 {[%clk 0:02:16.8]} 10... Bd7 {[%clk 0:02:07.7]} 11. c3 {[%clk
0:02:15.8]} 11... O-O-O {[%clk 0:01:59.8]} 12. O-O {[%clk 0:02:12.9]} 12... f6
{[%clk 0:01:59.6]} 13. b4 {[%clk 0:02:10.6]} 13... Bf8 {[%clk 0:01:53]} 14. a4
{[%clk 0:01:42.8]} 14... e5 {[%clk 0:01:47.9]} 15. a5 {[%clk 0:01:43]} 15... Qa7
{[%clk 0:01:40.4]} 16. Bg3 {[%clk 0:01:36.8]} 16... exd4 {[%clk 0:01:28.2]} 17.
cxd4 {[%clk 0:01:37.7]} 17... Ne7 {[%clk 0:00:48.9]} 18. Qc2+ {[%clk 0:01:28.7]}
18... Nc6 {[%clk 0:00:46]} 19. b5 {[%clk 0:01:24.8]} 19... axb5 {[%clk
0:00:45.1]} 20. Rxb5 {[%clk 0:01:25.7]} 20... Be7 {[%clk 0:00:21.4]} 21. Rc1
{[%clk 0:01:20.1]} 21... Rhe8 {[%clk 0:00:19.6]} 22. a6 {[%clk 0:01:02]} 22...
bxa6 {[%clk 0:00:09.6]} 23. Rb8+ {[%clk 0:01:00.2]} 23... Qxb8 {[%clk
0:00:07.7]} 24. Bxb8 {[%clk 0:00:59.7]} 24... Kxb8 {[%clk 0:00:07.8]} 25. Bxa6
{[%clk 0:00:58]} 25... Kc7 {[%clk 0:00:07.7]} 26. Bb5 {[%clk 0:00:56.6]} 26...
Rc8 {[%clk 0:00:03.9]} 27. Bxc6 {[%clk 0:00:56.3]} 27... Kd8 {[%clk 0:00:04.1]}
28. Qa4 {[%clk 0:00:47.5]} 28... Ba3 {[%clk 0:00:02.8]} 29. Qa5+ {[%clk
0:00:44.2]} 29... Ke7 {[%clk 0:00:02]} 30. Qxa3+ {[%clk 0:00:43.9]} 30... Kf7
{[%clk 0:00:01.4]} 31. Bxd7 {[%clk 0:00:43.6]} 1-0

[Event "*** SCC Grand Prix: Titled Tuesday Blitz"]
[Site "Chess.com"]
[Date "2020.08.25"]
[Round "8"]
[White "juancruzarias"]
[Black "Volodar_Murzin"]
[Result "1-0"]
[WhiteElo "2369"]
[BlackElo "2616"]
[TimeControl "180+1"]
[EndTime "11:35:52 PDT"]
[Termination "juancruzarias won by resignation"]

1. e4 {[%clk 0:02:59.1]} 1... c6 {[%clk 0:02:54]} 2. Nc3 {[%clk 0:02:56.4]} 2...
d5 {[%clk 0:02:53.3]} 3. Nf3 {[%clk 0:02:56.7]} 3... Bg4 {[%clk 0:02:52]} 4. h3
{[%clk 0:02:57.1]} 4... Bxf3 {[%clk 0:02:51.6]} 5. Qxf3 {[%clk 0:02:58]} 5...
Nf6 {[%clk 0:02:51.8]} 6. g3 {[%clk 0:02:56.9]} 6... e6 {[%clk 0:02:51.1]} 7. d3
{[%clk 0:02:57.1]} 7... Bb4 {[%clk 0:02:50.2]} 8. Bd2 {[%clk 0:02:55.6]} 8... d4
{[%clk 0:02:48.8]} 9. Nb1 {[%clk 0:02:55.3]} 9... Qb6 {[%clk 0:02:45.8]} 10. Bg2
{[%clk 0:02:40.4]} 10... Bxd2+ {[%clk 0:02:36.3]} 11. Nxd2 {[%clk 0:02:41.3]}
11... Qxb2 {[%clk 0:02:36.5]} 12. O-O {[%clk 0:02:39.9]} 12... Nbd7 {[%clk
0:02:34.1]} 13. Nc4 {[%clk 0:02:28.9]} 13... Qb4 {[%clk 0:02:14.6]} 14. e5
{[%clk 0:02:19.4]} 14... Nd5 {[%clk 0:01:41.2]} 15. Nd6+ {[%clk 0:02:18.2]}
15... Kd8 {[%clk 0:01:38.8]} 16. Qxf7 {[%clk 0:01:31.2]} 16... Nc3 {[%clk
0:01:07.1]} 17. Qxe6 {[%clk 0:01:07.7]} 17... Kc7 {[%clk 0:00:38]} 18. a3 {[%clk
0:01:07.5]} 18... Qc5 {[%clk 0:00:22.7]} 19. Nxb7 {[%clk 0:01:02.1]} 19... Qb5
{[%clk 0:00:14.7]} 20. Qd6+ {[%clk 0:00:51.5]} 20... Kxb7 {[%clk 0:00:03.4]} 21.
Qxd7+ {[%clk 0:00:50.7]} 21... Kb6 {[%clk 0:00:04.3]} 22. a4 {[%clk 0:00:49.9]}
22... Qc5 {[%clk 0:00:02]} 23. a5+ {[%clk 0:00:46.7]} 23... Ka6 {[%clk
0:00:01.7]} 24. Bxc6 {[%clk 0:00:39.9]} 24... Rab8 {[%clk 0:00:01.3]} 25. Bg2
{[%clk 0:00:36.4]} 25... Qxe5 {[%clk 0:00:01.2]} 26. Qc6+ {[%clk 0:00:35]} 1-0

[Event "*** SCC Grand Prix: Titled Tuesday Blitz"]
[Site "Chess.com"]
[Date "2020.08.25"]
[Round "8"]
[White "crescentmoon2411"]
[Black "Violord"]
[Result "0-1"]
[WhiteElo "2760"]
[BlackElo "2669"]
[TimeControl "180+1"]
[EndTime "11:35:56 PDT"]
[Termination "Violord won on time"]

1. e4 {[%clk 0:03:00.9]} 1... g6 {[%clk 0:02:59]} 2. d4 {[%clk 0:03:00.7]} 2...
Bg7 {[%clk 0:02:58.6]} 3. Nc3 {[%clk 0:03:01.2]} 3... c6 {[%clk 0:02:58.1]} 4.
f4 {[%clk 0:02:55.7]} 4... d5 {[%clk 0:02:57.3]} 5. e5 {[%clk 0:02:55.9]} 5...
Nh6 {[%clk 0:02:57.3]} 6. h3 {[%clk 0:02:42.6]} 6... Nf5 {[%clk 0:02:53.3]} 7.
Nf3 {[%clk 0:02:38.6]} 7... Ng3 {[%clk 0:02:51.6]} 8. Rg1 {[%clk 0:02:37.9]}
8... f6 {[%clk 0:02:33.2]} 9. Be3 {[%clk 0:02:32.7]} 9... Qb6 {[%clk 0:02:27.1]}
10. Na4 {[%clk 0:02:28]} 10... Qa5+ {[%clk 0:02:25.2]} 11. c3 {[%clk 0:02:25.2]}
11... fxe5 {[%clk 0:02:07.1]} 12. fxe5 {[%clk 0:02:20.7]} 12... Nxf1 {[%clk
0:02:05.8]} 13. Rxf1 {[%clk 0:02:20.3]} 13... O-O {[%clk 0:02:06.4]} 14. Nc5
{[%clk 0:02:14.5]} 14... b6 {[%clk 0:01:52.4]} 15. Nd3 {[%clk 0:01:54.9]} 15...
Ba6 {[%clk 0:01:30.6]} 16. Qd2 {[%clk 0:01:50.8]} 16... Bc4 {[%clk 0:01:26.2]}
17. b3 {[%clk 0:01:44.5]} 17... Bxb3 {[%clk 0:01:21.3]} 18. Ng5 {[%clk
0:00:53.4]} 18... Bc4 {[%clk 0:01:16.5]} 19. Rxf8+ {[%clk 0:00:49.9]} 19... Bxf8
{[%clk 0:01:15.5]} 20. Nb4 {[%clk 0:00:42.7]} 20... Qa3 {[%clk 0:00:52.9]} 21.
Rc1 {[%clk 0:00:37.8]} 21... Bh6 {[%clk 0:00:45.3]} 22. Qf2 {[%clk 0:00:31.6]}
22... Bxg5 {[%clk 0:00:44.1]} 23. Bxg5 {[%clk 0:00:32.5]} 23... Nd7 {[%clk
0:00:26.4]} 24. Nxc6 {[%clk 0:00:03.5]} 24... Rf8 {[%clk 0:00:25.4]} 25. Nxe7+
{[%clk 0:00:02.1]} 25... Kg7 {[%clk 0:00:24.2]} 0-1

[Event "*** SCC Grand Prix: Titled Tuesday Blitz"]
[Site "Chess.com"]
[Date "2020.08.25"]
[Round "8"]
[White "PaulfromSPb"]
[Black "wonderfultime"]
[Result "0-1"]
[WhiteElo "2684"]
[BlackElo "2896"]
[TimeControl "180+1"]
[EndTime "11:36:00 PDT"]
[Termination "wonderfultime won by checkmate"]

1. e4 {[%clk 0:03:00.9]} 1... c5 {[%clk 0:02:59.6]} 2. Ne2 {[%clk 0:03:00.7]}
2... g6 {[%clk 0:02:53.9]} 3. g3 {[%clk 0:02:59]} 3... Bg7 {[%clk 0:02:54]} 4.
Bg2 {[%clk 0:02:59.1]} 4... Nc6 {[%clk 0:02:53.4]} 5. c3 {[%clk 0:02:58.2]} 5...
e5 {[%clk 0:02:48.5]} 6. O-O {[%clk 0:02:55.3]} 6... Nge7 {[%clk 0:02:48.4]} 7.
d3 {[%clk 0:02:50.9]} 7... d6 {[%clk 0:02:47.2]} 8. Nd2 {[%clk 0:02:38.3]} 8...
O-O {[%clk 0:02:46.6]} 9. a4 {[%clk 0:02:35.4]} 9... Be6 {[%clk 0:02:44.7]} 10.
Nc4 {[%clk 0:02:31.9]} 10... d5 {[%clk 0:02:41.2]} 11. Ne3 {[%clk 0:02:23]}
11... d4 {[%clk 0:02:40]} 12. Nc2 {[%clk 0:01:53.8]} 12... Qd7 {[%clk
0:02:31.2]} 13. c4 {[%clk 0:01:34.5]} 13... f5 {[%clk 0:02:25.6]} 14. f3 {[%clk
0:01:33.9]} 14... Rf7 {[%clk 0:02:20.7]} 15. Bd2 {[%clk 0:01:33.5]} 15... a5
{[%clk 0:02:12.7]} 16. Na3 {[%clk 0:01:28]} 16... Raf8 {[%clk 0:02:09.8]} 17.
Nb5 {[%clk 0:01:26.4]} 17... b6 {[%clk 0:02:05.1]} 18. Qc2 {[%clk 0:01:22.2]}
18... fxe4 {[%clk 0:01:45.7]} 19. fxe4 {[%clk 0:01:20.4]} 19... Bg4 {[%clk
0:01:46.1]} 20. Bg5 {[%clk 0:01:10.8]} 20... h6 {[%clk 0:01:35.9]} 21. Bxe7
{[%clk 0:01:07.4]} 21... Qxe7 {[%clk 0:01:34.6]} 22. Qd2 {[%clk 0:01:01.1]}
22... h5 {[%clk 0:01:31.2]} 23. Rxf7 {[%clk 0:00:58.6]} 23... Rxf7 {[%clk
0:01:32.1]} 24. Rf1 {[%clk 0:00:58]} 24... Kh7 {[%clk 0:01:27.9]} 25. Rxf7
{[%clk 0:00:50.2]} 25... Qxf7 {[%clk 0:01:28.8]} 26. h3 {[%clk 0:00:48.9]} 26...
Bh6 {[%clk 0:01:27.1]} 27. Qe1 {[%clk 0:00:48.7]} 27... Be3+ {[%clk 0:01:25.6]}
28. Kh2 {[%clk 0:00:48.8]} 28... Be6 {[%clk 0:01:23.1]} 29. Ng1 {[%clk 0:00:37]}
29... Nb4 {[%clk 0:01:20.7]} 30. Qe2 {[%clk 0:00:37]} 30... h4 {[%clk
0:01:12.2]} 31. gxh4 {[%clk 0:00:26.1]} 31... Qf4+ {[%clk 0:01:12.1]} 32. Kh1
{[%clk 0:00:26.2]} 32... Qxh4 {[%clk 0:01:12.4]} 33. Nf3 {[%clk 0:00:26.6]}
33... Qg3 {[%clk 0:01:11.8]} 34. Qf1 {[%clk 0:00:11.5]} 34... Bf4 {[%clk
0:01:07.2]} 35. Nc7 {[%clk 0:00:09.9]} 35... Bd7 {[%clk 0:01:06.8]} 36. Nd5
{[%clk 0:00:10.1]} 36... Kg7 {[%clk 0:00:57.7]} 37. b3 {[%clk 0:00:08.8]} 37...
Nc2 {[%clk 0:00:54.4]} 38. Qe2 {[%clk 0:00:06.7]} 38... Ne3 {[%clk 0:00:53.7]}
39. Nxe3 {[%clk 0:00:02.6]} 39... dxe3 {[%clk 0:00:54.1]} 40. Ng1 {[%clk
0:00:02.7]} 40... Qh2# {[%clk 0:00:52]} 0-1

[Event "*** SCC Grand Prix: Titled Tuesday Blitz"]
[Site "Chess.com"]
[Date "2020.08.25"]
[Round "8"]
[White "Anton_Zhukov04"]
[Black "carlsen1001"]
[Result "0-1"]
[WhiteElo "2223"]
[BlackElo "2401"]
[TimeControl "180+1"]
[EndTime "11:36:02 PDT"]
[Termination "carlsen1001 won by resignation"]

1. d4 {[%clk 0:03:00.9]} 1... Nf6 {[%clk 0:02:59.4]} 2. c4 {[%clk 0:03:01.1]}
2... e6 {[%clk 0:02:59.9]} 3. Nf3 {[%clk 0:03:00.7]} 3... d5 {[%clk 0:02:59.8]}
4. Nc3 {[%clk 0:02:59.1]} 4... Bb4 {[%clk 0:03:00]} 5. cxd5 {[%clk 0:02:58.4]}
5... exd5 {[%clk 0:03:00.4]} 6. Bg5 {[%clk 0:02:58.1]} 6... h6 {[%clk
0:03:00.6]} 7. Bxf6 {[%clk 0:02:58.3]} 7... Qxf6 {[%clk 0:02:59.5]} 8. Qa4+
{[%clk 0:02:57.5]} 8... Nc6 {[%clk 0:02:59.8]} 9. e3 {[%clk 0:02:57.5]} 9... O-O
{[%clk 0:02:59.7]} 10. Be2 {[%clk 0:02:58]} 10... Be6 {[%clk 0:02:59.4]} 11. O-O
{[%clk 0:02:57.4]} 11... a6 {[%clk 0:02:59.9]} 12. Rfc1 {[%clk 0:02:57.4]} 12...
Bd6 {[%clk 0:02:58.7]} 13. a3 {[%clk 0:02:57.2]} 13... Ne7 {[%clk 0:02:51.4]}
14. Qd1 {[%clk 0:02:55.8]} 14... Rfc8 {[%clk 0:02:41.8]} 15. b4 {[%clk
0:02:54.5]} 15... Nf5 {[%clk 0:02:36.3]} 16. Na4 {[%clk 0:02:46]} 16... b6
{[%clk 0:02:35.4]} 17. Nb2 {[%clk 0:02:43.4]} 17... Qe7 {[%clk 0:02:24.7]} 18.
Nd3 {[%clk 0:02:37.6]} 18... f6 {[%clk 0:02:22.9]} 19. Nf4 {[%clk 0:02:14.7]}
19... Bf7 {[%clk 0:02:08.9]} 20. Bd3 {[%clk 0:02:11.3]} 20... Nxe3 {[%clk
0:02:07.3]} 21. fxe3 {[%clk 0:01:51]} 21... Qxe3+ {[%clk 0:02:06.2]} 22. Kh1
{[%clk 0:01:49.8]} 22... Qxf4 {[%clk 0:02:07]} 23. Qe2 {[%clk 0:01:41.8]} 23...
Re8 {[%clk 0:02:00.5]} 24. Qf1 {[%clk 0:01:38.5]} 24... Re3 {[%clk 0:01:57.1]}
25. Rc2 {[%clk 0:01:31.8]} 25... Bh5 {[%clk 0:01:54.6]} 26. Re1 {[%clk
0:01:14.6]} 26... Rae8 {[%clk 0:01:41.3]} 27. Rxe3 {[%clk 0:01:10.7]} 27... Rxe3
{[%clk 0:01:42.2]} 28. Bxa6 {[%clk 0:01:08.6]} 28... Bxf3 {[%clk 0:01:25.2]} 29.
gxf3 {[%clk 0:01:06.8]} 29... Rxf3 {[%clk 0:01:26.1]} 30. Qg2 {[%clk 0:01:06.8]}
30... Rxa3 {[%clk 0:01:12]} 31. Bf1 {[%clk 0:00:51.8]} 31... Ra1 {[%clk
0:00:58.8]} 32. Rf2 {[%clk 0:00:50.7]} 32... Qxd4 {[%clk 0:00:58.3]} 33. Re2
{[%clk 0:00:50.2]} 33... Be5 {[%clk 0:00:53.8]} 34. Rf2 {[%clk 0:00:39.7]} 34...
Qd1 {[%clk 0:00:43.1]} 35. Qg6 {[%clk 0:00:29.3]} 35... Bd4 {[%clk 0:00:33.7]}
36. Rf5 {[%clk 0:00:17.2]} 36... Qxf1+ {[%clk 0:00:33.4]} 37. Rxf1 {[%clk
0:00:16]} 37... Rxf1+ {[%clk 0:00:33.1]} 38. Kg2 {[%clk 0:00:16.9]} 38... Rg1+
{[%clk 0:00:33.6]} 0-1

[Event "*** SCC Grand Prix: Titled Tuesday Blitz"]
[Site "Chess.com"]
[Date "2020.08.25"]
[Round "8"]
[White "GianmarcoVaR"]
[Black "DenLaz"]
[Result "0-1"]
[WhiteElo "2476"]
[BlackElo "2701"]
[TimeControl "180+1"]
[EndTime "11:36:03 PDT"]
[Termination "DenLaz won by resignation"]

1. d4 {[%clk 0:02:58.2]} 1... d5 {[%clk 0:02:56.9]} 2. c4 {[%clk 0:02:56.7]}
2... e6 {[%clk 0:02:57.2]} 3. Nf3 {[%clk 0:02:57]} 3... a6 {[%clk 0:02:55]} 4.
g3 {[%clk 0:02:56.4]} 4... dxc4 {[%clk 0:02:49]} 5. Bg2 {[%clk 0:02:56.1]} 5...
b5 {[%clk 0:02:49.6]} 6. Ne5 {[%clk 0:02:55.2]} 6... Ra7 {[%clk 0:02:49.4]} 7.
a4 {[%clk 0:02:50.3]} 7... Bb7 {[%clk 0:02:45.9]} 8. e4 {[%clk 0:02:50]} 8... c6
{[%clk 0:02:39.8]} 9. O-O {[%clk 0:02:44.3]} 9... Nd7 {[%clk 0:02:37.9]} 10. Be3
{[%clk 0:02:26.7]} 10... Nxe5 {[%clk 0:02:36.1]} 11. dxe5 {[%clk 0:02:27.6]}
11... Qxd1 {[%clk 0:02:35.2]} 12. Rxd1 {[%clk 0:02:28.5]} 12... Ra8 {[%clk
0:02:35.7]} 13. b3 {[%clk 0:02:14.5]} 13... cxb3 {[%clk 0:02:26.1]} 14. Nd2
{[%clk 0:02:14.9]} 14... b2 {[%clk 0:02:21.9]} 15. Rab1 {[%clk 0:02:14.7]} 15...
Ne7 {[%clk 0:02:16.5]} 16. Nb3 {[%clk 0:02:12.2]} 16... bxa4 {[%clk 0:02:04]}
17. Na5 {[%clk 0:02:06.5]} 17... a3 {[%clk 0:02:03.7]} 18. Nxb7 {[%clk
0:02:05.2]} 18... Ng6 {[%clk 0:02:04]} 19. Nd6+ {[%clk 0:02:02.9]} 19... Bxd6
{[%clk 0:02:02.8]} 20. exd6 {[%clk 0:02:03.8]} 20... Rb8 {[%clk 0:01:16]} 21.
d7+ {[%clk 0:02:02]} 21... Kd8 {[%clk 0:01:15.2]} 22. Bd4 {[%clk 0:02:02.6]}
22... f6 {[%clk 0:00:51.7]} 23. Bc3 {[%clk 0:01:55.5]} 23... Ne5 {[%clk
0:00:47]} 24. Ba5+ {[%clk 0:00:41.4]} 24... Ke7 {[%clk 0:00:34.4]} 25. Bc7
{[%clk 0:00:42.3]} 25... a2 {[%clk 0:00:17.9]} 26. Bd6+ {[%clk 0:00:30.5]} 26...
Kf7 {[%clk 0:00:09.8]} 27. Bxb8 {[%clk 0:00:30.8]} 27... axb1=Q {[%clk
0:00:07.6]} 28. Rxb1 {[%clk 0:00:23.3]} 28... Rxb8 {[%clk 0:00:08.1]} 0-1

[Event "*** SCC Grand Prix: Titled Tuesday Blitz"]
[Site "Chess.com"]
[Date "2020.08.25"]
[Round "8"]
[White "kobemagic"]
[Black "Mbneu"]
[Result "0-1"]
[WhiteElo "2396"]
[BlackElo "2251"]
[TimeControl "180+1"]
[EndTime "11:36:03 PDT"]
[Termination "Mbneu won by resignation"]

1. c4 {[%clk 0:03:00.9]} 1... Nf6 {[%clk 0:02:58.7]} 2. g3 {[%clk 0:03:01.8]}
2... e6 {[%clk 0:02:57.9]} 3. Bg2 {[%clk 0:03:02.1]} 3... d5 {[%clk 0:02:58.5]}
4. Nf3 {[%clk 0:03:02]} 4... c5 {[%clk 0:02:59]} 5. cxd5 {[%clk 0:03:01.6]} 5...
exd5 {[%clk 0:02:59.9]} 6. d4 {[%clk 0:03:02]} 6... Nc6 {[%clk 0:03:00.2]} 7.
O-O {[%clk 0:03:01.7]} 7... Be7 {[%clk 0:03:00.6]} 8. b3 {[%clk 0:03:02.2]} 8...
O-O {[%clk 0:02:56.8]} 9. Bb2 {[%clk 0:03:02.5]} 9... Ne4 {[%clk 0:02:57.2]} 10.
e3 {[%clk 0:02:55.5]} 10... Bf6 {[%clk 0:02:54.8]} 11. Nc3 {[%clk 0:02:53.7]}
11... cxd4 {[%clk 0:02:37.7]} 12. Nxd4 {[%clk 0:02:52.3]} 12... Nxd4 {[%clk
0:02:26.7]} 13. exd4 {[%clk 0:02:44.1]} 13... Bf5 {[%clk 0:02:21.7]} 14. Re1
{[%clk 0:02:40.1]} 14... Re8 {[%clk 0:02:20.8]} 15. Rc1 {[%clk 0:02:34.2]} 15...
Qa5 {[%clk 0:02:15]} 16. Nxe4 {[%clk 0:02:16.7]} 16... dxe4 {[%clk 0:02:08.6]}
17. a3 {[%clk 0:02:15.3]} 17... Rad8 {[%clk 0:02:05.6]} 18. b4 {[%clk
0:02:14.2]} 18... Qb6 {[%clk 0:01:59.3]} 19. Rc5 {[%clk 0:02:10.4]} 19... Bg6
{[%clk 0:01:51.8]} 20. Qa4 {[%clk 0:02:08.9]} 20... Qe6 {[%clk 0:01:28.6]} 21.
Qxa7 {[%clk 0:02:01.9]} 21... Qb3 {[%clk 0:01:27.8]} 22. Ba1 {[%clk 0:01:54.2]}
22... e3 {[%clk 0:01:26]} 23. fxe3 {[%clk 0:01:40.3]} 23... Rxe3 {[%clk
0:01:23.9]} 24. Rcc1 {[%clk 0:01:40.8]} 24... Rde8 {[%clk 0:01:09.2]} 25. Rf1
{[%clk 0:01:31.9]} 25... Re2 {[%clk 0:01:05.2]} 26. Qxb7 {[%clk 0:01:28]} 26...
h5 {[%clk 0:00:49.1]} 27. Qf3 {[%clk 0:01:25.4]} 27... Qa2 {[%clk 0:00:47.3]}
28. Qd5 {[%clk 0:01:16.7]} 28... Qd2 {[%clk 0:00:40.2]} 29. Qc6 {[%clk
0:00:15.6]} 29... Kh7 {[%clk 0:00:33.4]} 30. Kh1 {[%clk 0:00:13.5]} 30... Rxg2
{[%clk 0:00:31.4]} 31. Qxg2 {[%clk 0:00:12.1]} 31... Be4 {[%clk 0:00:30.1]} 32.
Rf3 {[%clk 0:00:08.4]} 32... Qxc1+ {[%clk 0:00:28.8]} 0-1

[Event "*** SCC Grand Prix: Titled Tuesday Blitz"]
[Site "Chess.com"]
[Date "2020.08.25"]
[Round "8"]
[White "Msb2"]
[Black "FairChess_on_YouTube"]
[Result "1/2-1/2"]
[WhiteElo "2837"]
[BlackElo "2986"]
[TimeControl "180+1"]
[EndTime "11:36:07 PDT"]
[Termination "Game drawn by repetition"]

1. d4 {[%clk 0:03:00.9]} 1... Nf6 {[%clk 0:03:00.1]} 2. c4 {[%clk 0:03:01.5]}
2... e6 {[%clk 0:03:00.5]} 3. Nc3 {[%clk 0:03:02.2]} 3... Bb4 {[%clk 0:02:59.4]}
4. e3 {[%clk 0:03:02.6]} 4... O-O {[%clk 0:02:58.7]} 5. Bd2 {[%clk 0:03:03.2]}
5... c6 {[%clk 0:02:57.8]} 6. Nf3 {[%clk 0:03:03.3]} 6... d5 {[%clk 0:02:57]} 7.
Rc1 {[%clk 0:03:03.9]} 7... Nbd7 {[%clk 0:02:55.2]} 8. Bd3 {[%clk 0:03:04.2]}
8... dxc4 {[%clk 0:02:54.7]} 9. Bxc4 {[%clk 0:03:05.1]} 9... Bd6 {[%clk
0:02:52]} 10. O-O {[%clk 0:03:03.7]} 10... e5 {[%clk 0:02:52.2]} 11. h3 {[%clk
0:02:49.1]} 11... Qe7 {[%clk 0:02:42]} 12. dxe5 {[%clk 0:01:55.2]} 12... Nxe5
{[%clk 0:02:41.5]} 13. Nxe5 {[%clk 0:01:56.1]} 13... Bxe5 {[%clk 0:02:30.3]} 14.
f4 {[%clk 0:01:56]} 14... Bc7 {[%clk 0:02:22.1]} 15. Bd3 {[%clk 0:01:43.8]}
15... Rd8 {[%clk 0:02:15.3]} 16. Bb1 {[%clk 0:01:22.3]} 16... Bb6 {[%clk
0:02:11.3]} 17. Re1 {[%clk 0:01:03.5]} 17... Bxh3 {[%clk 0:01:16.7]} 18. gxh3
{[%clk 0:00:55.4]} 18... Qd7 {[%clk 0:01:16.9]} 19. Re2 {[%clk 0:00:46.5]} 19...
Qxh3 {[%clk 0:01:16.1]} 20. Qf1 {[%clk 0:00:41.2]} 20... Qh5 {[%clk 0:01:09.3]}
21. Rce1 {[%clk 0:00:37.5]} 21... Ng4 {[%clk 0:01:04.5]} 22. Qf3 {[%clk
0:00:32.2]} 22... Qh4 {[%clk 0:00:54]} 23. Bc1 {[%clk 0:00:24.1]} 23... Rd6
{[%clk 0:00:53.9]} 24. Ne4 {[%clk 0:00:20.4]} 24... Rh6 {[%clk 0:00:52.4]} 25.
Ng3 {[%clk 0:00:19.6]} 25... Nh2 {[%clk 0:00:46.3]} 26. Qg2 {[%clk 0:00:16.8]}
26... Qxf4 {[%clk 0:00:46.3]} 27. Nf5 {[%clk 0:00:14.8]} 27... Nf3+ {[%clk
0:00:44.8]} 28. Kf1 {[%clk 0:00:11.1]} 28... Nd2+ {[%clk 0:00:33.8]} 29. Kg1
{[%clk 0:00:11.4]} 29... Nf3+ {[%clk 0:00:21.5]} 30. Kf1 {[%clk 0:00:11.7]}
30... Nh2+ {[%clk 0:00:13.1]} 31. Kg1 {[%clk 0:00:12.2]} 31... Nf3+ {[%clk
0:00:12.4]} 1/2-1/2